Workbook

Sheet 封面
A1: 2023年部门预算公开表
D4: 单位编码： | E4: 412001
D5: 单位名称： | E5: 岳阳县住房和城乡建设局(本级)

Sheet 目录
B1: 部门预算公开表
B3: 一、部门预算报表
B4: 1 | C4: 收支总表
B5: 2 | C5: 收入总表
B6: 3 | C6: 支出总表
B7: 4 | C7: 支出预算分类汇总表（按政府预算经济分类）
B8: 5 | C8: 支出预算分类汇总表（按部门预算经济分类）
B9: 6 | C9: 财政拨款收支总表
B10: 7 | C10: 一般公共预算支出表
B11: 8 | C11: 一般公共预算基本支出表
B12: 9 | C12: 一般公共预算基本支出表--人员经费(工资福利支出)(按政府预算经济分类)
B13: 10 | C13: 一般公共预算基本支出表--人员经费(工资福利支出)(按部门预算经济分类)
B14: 11 | C14: 一般公共预算基本支出表--人员经费(对个人和家庭的补助)(按政府预算经济分类)
B15: 12 | C15: 一般公共预算基本支出表--人员经费(对个人和家庭的补助)（按部门预算经济分类）
B16: 13 | C16: 一般公共预算基本支出表--公用经费(商品和服务支出)（按政府预算经济分类）
B17: 14 | C17: 一般公共预算基本支出表--公用经费(商品和服务支出)(按部门预算经济分类)
B18: 15 | C18: 一般公共预算“三公”经费支出表
B19: 16 | C19: 政府性基金预算支出表
B20: 17 | C20: 政府性基金预算支出分类汇总表（按政府预算经济分类）
B21: 18 | C21: 政府性基金预算支出分类汇总表（按部门预算经济分类）
B22: 19 | C22: 国有资本经营预算表
B23: 20 | C23: 财政专户管理资金预算支出表
B24: 21 | C24: 专项资金预算汇总表
B25: 22 | C25: 项目支出绩效目标表
B26: 23 | C26: 部门整体支出绩效目标表
B27: 注：以上部门预算报表中，空表表示本部门无相关收支情况。

Sheet 1收支总表
H1: 部门公开表01
A2: 收支总表
A3: 部门：412001_岳阳县住房和城乡建设局(本级) | G3: 金额单位：万元
A4: 收入 | C4: 支出
A5: 项目 | B5: 预算数 | C5: 项目（按功能分类） | D5: 预算数 | E5: 项目（按部门预算经济分类） | F5: 预算数 | G5: 项目（按政府预算经济分类） | H5: 预算数
A6: 一、一般公共预算拨款收入 | B6: =B7+B8 -> 1,476.39 | C6: （一）一般公共服务支出 | D6: 48.51 | E6: 一、基本支出 | F6: 881.21 | G6: 一、机关工资福利支出 | H6: 960.26
A7: 经费拨款 | B7: 1,468.39 | C7: （二）外交支出 | E7: 工资福利支出 | F7: 796.78 | G7: 二、机关商品和服务支出 | H7: 1,103.69
A8: 纳入一般公共预算管理的非税收入拨款 | B8: 8.00 | C8: （三）国防支出 | E8: 商品和服务支出 | F8: 84.43 | G8: 三、机关资本性支出（一）
A9: 行政事业性收费收入 | C9: （四）公共安全支出 | E9: 对个人和家庭的补助 | G9: 四、机关资本性支出（二）
A10: 专项收入 | C10: （五）教育支出 | E10: 二、项目支出 | F10: 1,222.16 | G10: 五、对事业单位经常性补助 | H10: 39.42
A11: 国有资本经营收入 | C11: （六）科学技术支出 | E11: 按项目管理的工资福利支出 | F11: 163.48 | G11: 六、对事业单位资本性补助
A12: 国有资源（资产）有偿使用收入 | C12: （七）文化旅游体育与传媒支出 | E12: 按项目管理的商品和服务支出 | F12: 1,058.68 | G12: 七、对企业补助
A13: 罚没收入 | C13: （八）社会保障和就业支出 | D13: 84.57 | E13: 按项目管理的对个人和家庭的补助 | G13: 八、对企业资本性支出
A14: 捐赠收入 | C14: （九）社会保险基金支出 | E14: 债务利息及费用支出 | G14: 九、对个人和家庭的补助
A15: 政府住房基金收入 | C15: （十）卫生健康支出 | D15: 47.26 | E15: 资本性支出（基本建设） | G15: 十、对社会保障基金补助
A16: 其他纳入一般公共预算管理的非税收入 | C16: （十一）节能环保支出 | D16: 453.42 | E16: 资本性支出 | G16: 十一、债务利息及费用支出
A17: 一般债券 | C17: （十二）城乡社区支出 | D17: 1,409.91 | E17: 对企业补助（基本建设） | G17: 十二、债务还本支出
A18: 外国政府和国际组织贷款 | C18: （十三）农林水支出 | E18: 对企业补助 | G18: 十三、转移性支出
A19: 外国政府和国际组织捐赠 | C19: （十四）交通运输支出 | E19: 对社会保障基金补助 | G19: 十四、其他支出
A20: 二、政府性基金预算拨款收入 | C20: （十五）资源勘探工业信息等支出 | E20: 其他支出
A21: 三、国有资本经营预算拨款收入 | C21: （十六）商业服务业等支出 | E21: 三、事业单位经营服务支出
A22: 四、社会保障基金预算资金 | C22: （十七）金融支出
A23: 五、财政专户管理资金收入 | C23: （十八）援助其他地区支出
A24: 六、上级财政补助收入 | C24: （十九）自然资源海洋气象等支出
A25: 一般公共预算补助 | C25: （二十）住房保障支出 | D25: 59.70
A26: 政府性基金补助 | C26: （二十一）粮油物资储备支出
A27: 国有资本经营预算补助 | C27: （二十二）国有资本经营预算支出
A28: 七、事业收入 | C28: （二十三）灾害防治及应急管理支出
A29: 八、事业单位经营收入 | C29: （二十四）预备费
A30: 九、上级单位补助收入 | C30: （二十五）其他支出
A31: 十、附属单位上缴收入 | C31: （二十六）转移性支出
A32: 十一、其他收入 | C32: （二十七）债务还本支出
C33: （二十八）债务付息支出
C34: （二十九）债务发行费用支出
C35: （三十）抗疫特别国债安排的支出
A37: 本 年 收 入 合 计 | B37: =SUM(B6+B20) -> 1,476.39 | C37: 本 年 支 出 合 计 | D37: =SUM(D6:D35) -> 2,103.37 | E37: 本 年 支 出 合 计 | F37: =SUM(F6+F10+F21) -> 2,103.37 | G37: 本 年 支 出 合 计 | H37: =SUM(H6:H19) -> 2,103.37
A38: 上年结转结余 | B38: 626.98 | C38: 年终结转结余 | E38: 年终结转结余 | G38: 年终结转结余
A40: 收 入 总 计 | B40: =SUM(B37:B38) -> 2,103.37 | C40: 支 出 总 计 | D40: =SUM(D37:D38) -> 2,103.37 | E40: 支 出 总 计 | F40: =SUM(F37:F38) -> 2,103.37 | G40: 支 出 总 计 | H40: =SUM(H37:H38) -> 2,103.37

Sheet 2收入总表
X1: 部门公开表02
A2: 收入总表
A3: 部门：412001_岳阳县住房和城乡建设局(本级) | X3: 金额单位：万元
A4: 部门（单位）代码 | B4: 部门（单位）名称 | C4: 合计 | D4: 本年收入 | S4: 上年结转结余
D5: 小计 | E5: 一般公共预算 | F5: 政府性基金预算 | G5: 国有资本经营预算 | H5: 社会保险基金预算资金 | I5: 财政专户管理资金 | J5: 上级财政补助收入 | N5: 事业收入 | O5: 事业单位经营收入 | P5: 上级单位补助收入 | Q5: 附属单位上缴收入 | R5: 其他收入 | S5: 小计 | T5: 一般公共预算 | U5: 政府性基金预算 | V5: 国有资本经营预算 | W5: 社会保险基金预算资金 | X5: 财政专户管理资金 | Y5: 单位资金
J6: 一般公共预算补助 | K6: 政府性基金补助 | L6: 国有资本经营预算补助 | M6: 社会保险基金预算资金
B7: 合计 | C7: =D7+S7 -> 2,103.37 | D7: =D8 -> 1,476.39 | E7: =E8 -> 1,476.39 | S7: 626.98 | T7: 564.60 | U7: 62.38
A8: 412 | B8: 岳阳县住房和城乡建设局 | C8: =C7 -> 2,103.37 | D8: =D9 -> 1,476.39 | E8: =E9 -> 1,476.39 | S8: 626.98 | T8: 564.60 | U8: 62.38
A9: 412001 | B9: 岳阳县住房和城乡建设局 | C9: =D9+S9 -> 2,103.37 | D9: 1,476.39 | E9: 1,476.39 | S9: =SUM(T9:U9) -> 626.98 | T9: 564.60 | U9: 62.38

Sheet 3支出总表
K1: 部门公开表03
A2: 支出总表
A3: 部门：412001_岳阳县住房和城乡建设局(本级) | K3: 金额单位：万元
A4: 功能科目 | D4: 科目编码 | E4: 科目名称 | F4: 合计 | G4: 基本支出 | H4: 项目支出 | I4: 事业单位经营支出 | J4: 上缴上级支出 | K4: 对附属单位补助支出
A5: 类 | B5: 款 | C5: 项
D6: 合计 | F6: =SUM(F7) -> 2,103.37 | G6: =SUM(G7) -> 881.21 | H6: =SUM(H7) -> 1,222.16
D7: 412 | E7: 岳阳县住房和城乡建设局 | F7: =SUM(F8) -> 2,103.37 | G7: =SUM(G8) -> 881.21 | H7: 1,222.16
D8: 412001 | E8: 岳阳县住房和城乡建设局 | F8: =SUM(F9+F10+F11+F12+F13+F14+F15+F16+F17+F18+F19+F20) -> 2,103.37 | G8: =SUM(G9:G20) -> 881.21 | H8: =SUM(H9:H20) -> 1,222.16
A9: 201 | B9: 03 | C9: 99 | D9: 2010399 | E9: 其他政府办公厅（室）及相关机构事务支出 | F9: 48.51 | H9: 48.51
A10: 208 | B10: 05 | C10: 05 | D10: 2080505 | E10: 机关事业单位基本养老保险缴费支出 | F10: 79.60 | G10: 79.60
A11: 208 | B11: 99 | C11: 99 | D11: 2089999 | E11: 其他社会保障和就业支出 | F11: 4.97 | G11: 4.97
A12: 210 | B12: 11 | C12: 01 | D12: 2101101 | E12: 行政单位医疗 | F12: 47.26 | G12: 47.26
A13: 211 | B13: 03 | C13: 99 | D13: 2110399 | E13: 其他污染防治支出 | F13: 393.35 | H13: 393.35
A14: 211 | B14: 99 | C14: 99 | D14: 2119999 | E14: 其他节能环保支出 | F14: 60.07 | H14: 60.07
A15: 212 | B15: 01 | C15: 01 | D15: 2120101 | E15: 行政运行 | F15: =SUM(G15+H15) -> 1,289.54 | G15: 689.69 | H15: 599.85
A16: 212 | B16: 01 | C16: 99 | D16: 2120199 | E16: 其他城乡社区管理事务支出 | F16: 55.93 | H16: 55.93
A17: 212 | B17: 99 | C17: 99 | D17: 2129999 | E17: 其他城乡社区支出 | F17: 2.07 | H17: 2.07
A18: 212 | B18: 08 | C18: 03 | D18: 2120803 | E18: 城市建设支出 | F18: 56.58 | H18: 56.58
A19: 212 | B19: 14 | C19: 01 | D19: 2121401 | E19: 污水处理设施建设和运营 | F19: 5.80 | H19: 5.80
A20: 221 | B20: 02 | C20: 01 | D20: 2210201 | E20: 住房公积金 | F20: 59.70 | G20: 59.70

Sheet 4支出分类(政府预算)
S1: 部门公开表04
A2: 支出预算分类汇总表（按政府预算经济分类）
A3: 部门：412001_岳阳县住房和城乡建设局(本级) | S3: 金额单位：万元
A4: 功能科目 | D4: 单位代码 | E4: 单位名称（功能科目） | F4: 总 计 | G4: 机关工资福利支出 | H4: 机关商品和服务支出 | I4: 机关资本性支出(一) | J4: 机关资本性支出(二) | K4: 对事业单位经常性补助 | L4: 对事业单位资本性补助 | M4: 对企业补助 | N4: 对企业资本性支出 | O4: 对个人和家庭的补助 | P4: 对社会保障基金补助 | Q4: 债务利息及费用支出 | R4: 债务还本支出 | S4: 转移性支出 | T4: 其他支出
A5: 类 | B5: 款 | C5: 项
E6: 合计 | F6: =SUM(F7) -> 2,103.37 | G6: =SUM(G7) -> 960.26 | H6: 1,103.69 | I6: 0.00 | J6: 0.00 | K6: 39.42
D7: 412 | E7: 岳阳县住房和城乡建设局 | F7: =SUM(F8) -> 2,103.37 | G7: =SUM(G8) -> 960.26 | H7: 1,103.69 | I7: 0.00 | J7: 0.00 | K7: =K9+K11+K14+K16+K19+K25 -> 39.42
D8: 412001 | E8: 岳阳县住房和城乡建设局 | F8: =F9+F11+F14+F16+F19+F25 -> 2,103.37 | G8: =G9+G11+G14+G16+G19+G25 -> 960.26 | H8: 1,103.69 | I8: 0.00 | J8: 0.00 | K8: 39.42
A9: 201 | E9: 一般公共服务支出 | F9: 48.51 | H9: 48.51
A10: 201 | B10: 03 | C10: 99 | D10: 412001 | E10: 其他政府办公厅（室）及相关机构事务支出 | F10: 48.51 | H10: 48.51
A11: 208 | E11: 社会保障和就业支出 | F11: =SUM(F12+F13) -> 84.57 | G11: =SUM(G12+G13) -> 84.57
A12: 208 | B12: 05 | C12: 05 | D12: 412001 | E12: 机关事业单位基本养老保险缴费支出 | F12: 79.60 | G12: 79.60
A13: 208 | B13: 99 | C13: 99 | D13: 412001 | E13: 其他社会保障和就业支出 | F13: 4.97 | G13: 4.97
A14: 210 | E14: 卫生健康支出 | F14: =SUM(F15) -> 47.26 | G14: =SUM(G15) -> 47.26
A15: 210 | B15: 11 | C15: 01 | D15: 412001 | E15: 行政单位医疗 | F15: 47.26 | G15: 47.26
A16: 211 | E16: 节能环保支出 | F16: =SUM(F17+F18) -> 453.42 | H16: =SUM(H17:H18) -> 453.42
A17: 211 | B17: 03 | C17: 99 | D17: 412001 | E17: 其他污染防治支出 | F17: 393.35 | H17: 393.35
A18: 211 | B18: 99 | C18: 99 | D18: 412001 | E18: 其他节能环保支出 | F18: 60.07 | H18: 60.07
A19: 212 | E19: 城乡社区支出 | F19: =SUM(F20:F24) -> 1,409.91 | G19: =SUM(G20:G24) -> 768.73 | H19: =SUM(H20:H24) -> 601.76 | K19: =SUM(K20:K24) -> 39.42
A20: 212 | B20: 01 | C20: 01 | D20: 412001 | E20: 行政运行 | F20: =SUM(G20+H20+K20) -> 1,289.53 | G20: 768.73 | H20: 481.38 | K20: 39.42
A21: 212 | B21: 01 | C21: 99 | D21: 412001 | E21: 其他城乡社区管理事务支出 | F21: 55.93 | H21: 55.93
A22: 212 | B22: 99 | C22: 99 | D22: 412001 | E22: 其他城乡社区支出 | F22: 2.07 | H22: 2.07
A23: 212 | B23: 08 | C23: 03 | D23: 412001 | E23: 城市建设支出 | F23: 56.58 | H23: 56.58
A24: 212 | B24: 14 | C24: 01 | D24: 412001 | E24: 污水处理设施建设和运营 | F24: 5.80 | H24: 5.80
A25: 221 | E25: 住房保障支出 | F25: =SUM(F26) -> 59.70 | G25: =SUM(G26) -> 59.70 | H25: 0.00
A26: 221 | B26: 02 | C26: 01 | D26: 412001 | E26: 住房公积金 | F26: 59.70 | G26: 59.70

Sheet 5支出分类（部门预算）
T1: 部门公开表05
A2: 支出预算分类汇总表（按部门预算经济分类）
A3: 部门：412001_岳阳县住房和城乡建设局(本级) | T3: 金额单位：万元
A4: 功能科目 | D4: 单位代码 | E4: 单位名称（功能科目） | F4: 总 计 | G4: 基本支出 | K4: 项目支出
A5: 类 | B5: 款 | C5: 项 | G5: 合计 | H5: 工资福利支出 | I5: 一般商品和服务支出 | J5: 对个人和家庭的补助 | K5: 合计 | L5: 按项目管理的工资福利支出 | M5: 按项目管理的商品和服务支出 | N5: 按项目管理的对个人和家庭的补助 | O5: 债务利息及费用支出 | P5: 资本性支出（基本建设） | Q5: 资本性支出 | R5: 对企业补助（基本建设） | S5: 对企业补助 | T5: 对社会保障基金补助 | U5: 其他支出
E6: 合计 | F6: =F7 -> 2,103.37 | G6: =G7 -> 881.21 | H6: 796.78 | I6: 84.43 | J6: 0.00 | K6: 1,222.16 | L6: 163.48 | M6: 1,058.68
D7: 412 | E7: 岳阳县住房和城乡建设局 | F7: =F8 -> 2,103.37 | G7: =G8 -> 881.21 | H7: 796.78 | I7: 84.43 | J7: 0.00 | K7: 1,222.16 | L7: 163.48 | M7: 1,058.68
D8: 412001 | E8: 岳阳县住房和城乡建设局 | F8: =F9+F10+F11+F12+F13+F14+F15+F16+F17+F18+F19+F20 -> 2,103.37 | G8: =G9+G10+G11+G12+G13+G14+G15+G16+G17+G18+G19+G20 -> 881.21 | H8: 796.78 | I8: 84.43 | J8: 0.00 | K8: 1,222.16 | L8: 163.48 | M8: 1,058.68
A9: 201 | B9: 03 | C9: 99 | D9: 412001 | E9: 其他政府办公厅（室）及相关机构事务支出 | F9: 48.51 | K9: =L9+M9+N9+O9+P9+Q9+R9+S9+T9+U9 -> 48.51 | M9: 48.51
A10: 208 | B10: 05 | C10: 05 | D10: 412001 | E10: 机关事业单位基本养老保险缴费支出 | F10: 79.60 | G10: 79.60 | H10: 79.60 | K10: =L10+M10+N10+O10+P10+Q10+R10+S10+T10+U10 -> 0.00
A11: 208 | B11: 99 | C11: 99 | D11: 412001 | E11: 其他社会保障和就业支出 | F11: 4.97 | G11: 4.97 | H11: 4.97 | K11: 0.00
A12: 210 | B12: 11 | C12: 01 | D12: 412001 | E12: 行政单位医疗 | F12: 47.26 | G12: 47.26 | H12: 47.26 | K12: 0.00
A13: 211 | B13: 03 | C13: 99 | D13: 412001 | E13: 其他污染防治支出 | F13: 393.35 | K13: 393.35 | M13: 393.35
A14: 211 | B14: 99 | C14: 99 | D14: 412001 | E14: 其他节能环保支出 | F14: 60.07 | K14: 60.07 | M14: 60.07
A15: 212 | B15: 01 | C15: 01 | D15: 412001 | E15: 行政运行 | F15: =SUM(G15+K15) -> 1,289.53 | G15: =SUM(H15:J15) -> 689.68 | H15: 605.25 | I15: 84.43 | K15: 599.85 | L15: 163.48 | M15: 436.37
A16: 212 | B16: 01 | C16: 99 | D16: 412001 | E16: 其他城乡社区管理事务支出 | F16: 55.93 | K16: 55.93 | M16: 55.93
A17: 212 | B17: 99 | C17: 99 | D17: 412001 | E17: 其他城乡社区支出 | F17: 2.07 | K17: 2.07 | M17: 2.07
A18: 212 | B18: 08 | C18: 03 | D18: 412001 | E18: 城市建设支出 | F18: 56.58 | K18: 56.58 | M18: 56.58
A19: 212 | B19: 14 | C19: 01 | D19: 412001 | E19: 污水处理设施建设和运营 | F19: 5.80 | K19: 5.80 | M19: 5.80
A20: 221 | B20: 02 | C20: 01 | D20: 412001 | E20: 住房公积金 | F20: 59.70 | G20: 59.70 | H20: 59.70 | K20: 0.00

Sheet 6财政拨款收支总表
D1: 部门公开表06
A2: 财政拨款收支总表
A3: 部门：412001_岳阳县住房和城乡建设局(本级) | D3: 金额单位：万元
A4: 收入 | C4: 支出
A5: 项目 | B5: 预算数 | C5: 项目 | D5: 预算数
A6: 一、本年收入 | B6: =B7+B10 -> 1,476.39 | C6: 一、本年支出 | D6: 2,103.37
A7: （一）一般公共预算拨款 | B7: =B8+B9 -> 1,476.39 | C7: （一）一般公共服务支出 | D7: 48.51
A8: 经费拨款 | B8: 1,468.39 | C8: （二）外交支出
A9: 纳入一般公共预算管理的非税收入拨款 | B9: 8.00 | C9: （三）国防支出
A10: （二）政府性基金预算拨款 | C10: （四）公共安全支出
A11: （三）国有资本经营预算拨款 | C11: （五）教育支出
A12: （四）社会保险基金预算资金 | C12: （六）科学技术支出
A13: 二、上年结转 | B13: =SUM(B14:B15) -> 626.98 | C13: （七）文化旅游体育与传媒支出
A14: （一）一般公共预算拨款 | B14: 564.60 | C14: （八）社会保障和就业支出 | D14: 84.57
A15: （二）政府性基金预算拨款 | B15: 62.38 | C15: （九）社会保险基金支出
A16: （三）国有资本经营预算拨款 | C16: （十）卫生健康支出 | D16: 47.26
A17: （四）社会保险基金预算资金 | C17: （十一）节能环保支出 | D17: 453.42
C18: （十二）城乡社区支出 | D18: 1,409.91
C19: （十三）农林水支出
C20: （十四）交通运输支出
C21: （十五）资源勘探工业信息等支出
C22: （十六）商业服务业等支出
C23: （十七）金融支出
C24: （十八）援助其他地区支出
C25: （十九）自然资源海洋气象等支出
C26: （二十）住房保障支出 | D26: 59.70
C27: （二十一）粮油物资储备支出
C28: （二十二）国有资本经营预算支出
C29: （二十三）灾害防治及应急管理支出
C30: （二十四）预备费
C31: （二十五）其他支出
C32: （二十六）转移性支出
C33: （二十七）债务还本支出
C34: （二十八）债务付息支出
C35: （二十九）债务发行费用支出
C36: （三十）抗疫特别国债安排的支出
C38: 二、年终结转结余
A40: 收 入 总 计 | B40: =SUM(B6+B13) -> 2,103.37 | C40: 支 出 总 计 | D40: =SUM(D6+D38) -> 2,103.37

Sheet 7一般公共预算支出表
K1: 部门公开表07
A2: 一般公共预算支出表
A3: 部门：412001_岳阳县住房和城乡建设局(本级) | J3: 金额单位：万元
A4: 功能科目 | D4: 科目编码 | E4: 科目名称 | F4: 合计 | G4: 基本支出 | K4: 项目支出
G5: 小计 | H5: 人员经费 | J5: 公用经费
A6: 类 | B6: 款 | C6: 项 | H6: 工资福利支出 | I6: 对个人和家庭的补助
E7: 合计 | F7: =SUM(F8) -> 2,040.99 | G7: =SUM(H7:J7) -> 881.21 | H7: =SUM(H8) -> 796.78 | J7: =SUM(J8) -> 84.43 | K7: =SUM(K8) -> 1,159.78
D8: 412001 | E8: 岳阳县住房和城乡建设局 | F8: =SUM(F9+F12+F17+F20+F24+F30) -> 2,040.99 | G8: =SUM(H8:J8) -> 881.21 | H8: =SUM(H9+H12+H17+H20+H24+H30) -> 796.78 | J8: =SUM(J9+J12+J17+J20+J24+J30) -> 84.43 | K8: =SUM(K9+K12+K17+K20+K24+K30) -> 1,159.78
A9: 201 | D9: 201 | E9: 一般公共服务支出 | F9: =SUM(F11) -> 48.51 | K9: =SUM(K11) -> 48.51
A10: 201 | B10: 03 | D10: 20103 | E10: 政府办公厅（室）及相关机构事务 | F10: 48.51 | K10: 48.51
A11: 201 | B11: 03 | C11: 99 | D11: 2010399 | E11: 其他政府办公厅（室）及相关机构事务支出 | F11: 48.51 | K11: 48.51
A12: 208 | D12: 208 | E12: 社会保障和就业支出 | F12: =SUM(F13+F15) -> 84.57 | G12: =SUM(H12+J12) -> 84.57 | H12: =SUM(H13+H15) -> 84.57
A13: 208 | B13: 05 | D13: 20805 | E13: 行政事业单位养老支出 | F13: 79.60 | G13: =SUM(H13+J13) -> 79.60 | H13: 79.60
A14: 208 | B14: 05 | C14: 05 | D14: 2080505 | E14: 机关事业单位基本养老保险缴费支出 | F14: 79.60 | G14: 79.60 | H14: 79.60
A15: 208 | B15: 99 | D15: 20899 | E15: 其他社会保障和就业支出 | F15: 4.97 | G15: 4.97 | H15: 4.97
A16: 208 | B16: 99 | C16: 99 | D16: 2089999 | E16: 其他社会保障和就业支出 | F16: 4.97 | G16: 4.97 | H16: 4.97
A17: 210 | D17: 210 | E17: 卫生健康支出 | F17: 47.26 | G17: 47.26 | H17: 47.26
A18: 210 | B18: 11 | D18: 21011 | E18: 行政事业单位医疗 | F18: 47.26 | G18: 47.26 | H18: 47.26
A19: 210 | B19: 11 | C19: 01 | D19: 2101101 | E19: 行政单位医疗 | F19: 47.26 | G19: 47.26 | H19: 47.26
A20: 211 | D20: 211 | E20: 节能环保支出 | F20: =SUM(F22+F23) -> 453.42 | K20: =SUM(K22+K23) -> 453.42
A21: 211 | B21: 03 | D21: 21103 | E21: 污染防治 | F21: =SUM(F22:F23) -> 453.42 | K21: =SUM(K22:K23) -> 453.42
A22: 211 | B22: 03 | C22: 99 | D22: 2110399 | E22: 其他污染防治支出 | F22: 393.35 | K22: 393.35
A23: 211 | B23: 99 | C23: 99 | D23: 2119999 | E23: 其他节能环保支出 | F23: 60.07 | K23: 60.07
A24: 212 | D24: 212 | E24: 城乡社区支出 | F24: =SUM(F25+F28) -> 1,347.53 | G24: =SUM(G25+G28) -> 689.68 | H24: =SUM(H25+H28) -> 605.25 | J24: =SUM(J25+J28) -> 84.43 | K24: =SUM(K25+K28) -> 657.85
A25: 212 | B25: 01 | D25: 21201 | E25: 城乡社区管理事务 | F25: =F26+F27 -> 1,345.46 | G25: =G26+G27 -> 689.68 | H25: =H26+H27 -> 605.25 | J25: =J26+J27 -> 84.43 | K25: =K26+K27 -> 655.78
A26: 212 | B26: 01 | C26: 01 | D26: 2120101 | E26: 行政运行 | F26: =SUM(G26+K26) -> 1,289.53 | G26: 689.68 | H26: 605.25 | J26: 84.43 | K26: 599.85
A27: 212 | B27: 01 | C27: 99 | D27: 2120199 | E27: 其他城乡社区管理事务支出 | F27: 55.93 | K27: 55.93
A28: 212 | B28: 99 | D28: 21299 | E28: 其他城乡社区支出 | F28: =F29 -> 2.07 | K28: 2.07
A29: 212 | B29: 99 | C29: 99 | D29: 2129999 | E29: 其他城乡社区支出 | F29: 2.07 | K29: 2.07
A30: 221 | D30: 221 | E30: 住房保障支出 | F30: 59.70 | G30: 59.70 | H30: 59.70
A31: 221 | B31: 02 | D31: 22102 | E31: 住房改革支出 | F31: 59.70 | G31: 59.70 | H31: 59.70
A32: 221 | B32: 02 | C32: 01 | D32: 2210201 | E32: 住房公积金 | F32: 59.70 | G32: 59.70 | H32: 59.70

Sheet 8一般公共预算基本支出表
E1: 部门公开表08
A2: 一般公共预算基本支出表
A3: 单位：单位：412001_岳阳县住房和城乡建设局 | E3: 单位：万元
A4: 部门预算支出经济分类科目 | C4: 本年一般公共预算基本支出
A5: 科目代码 | B5: 科目名称 | C5: 合计 | D5: 人员经费 | E5: 公用经费
A6: 301 | B6: 工资福利支出 | C6: 796.78 | D6: 796.78
A7: 30108 | B7: 机关事业单位基本养老保险缴费 | C7: 79.60 | D7: 79.60
A8: 30112 | B8: 其他社会保障缴费 | C8: 4.97 | D8: 4.97
A9: 30110 | B9: 职工基本医疗保险缴费 | C9: 42.29 | D9: 42.29
A10: 30111 | B10: 公务员医疗补助缴费 | C10: 4.97 | D10: 4.97
A11: 30101 | B11: 基本工资 | C11: 338.01 | D11: 338.01
A12: 30103 | B12: 奖金 | C12: 0.00 | D12: 0.00
A13: 30102 | B13: 津贴补贴 | C13: 167.55 | D13: 167.55
A14: 30107 | B14: 绩效工资 | C14: 99.69 | D14: 99.69
A15: 30113 | B15: 住房公积金 | C15: 59.70 | D15: 59.70
A16: 302 | B16: 商品和服务支出 | C16: 84.43 | E16: 84.43
A17: 30201 | B17: 办公费 | C17: 5.91 | E17: 5.91
A18: 30202 | B18: 印刷费 | C18: 1.31 | E18: 1.31
A19: 30205 | B19: 水费 | C19: 0.96 | E19: 0.96
A20: 30206 | B20: 电费 | C20: 3.94 | E20: 3.94
A21: 30207 | B21: 邮电费 | C21: 6.57 | E21: 6.57
A22: 30209 | B22: 物业管理费 | C22: 4.60 | E22: 4.60
A23: 30211 | B23: 差旅费 | C23: 7.88 | E23: 7.88
A24: 30213 | B24: 维修（护）费 | C24: 1.31 | E24: 1.31
A25: 30216 | B25: 培训费 | C25: 2.34 | E25: 2.34
A26: 30217 | B26: 公务接待费 | C26: 3.29 | E26: 3.29
A27: 30239 | B27: 其他交通费用 | C27: 45.01 | E27: 45.01
A28: 30299 | B28: 其他商品和服务支出 | C28: 1.31 | E28: 1.31
A29: 合计 | C29: 881.21 | D29: 796.78 | E29: 84.43

Sheet 9工资福利(政府预算)
M1: 部门公开表09
A2: 一般公共预算基本支出表--人员经费(工资福利支出)(按政府预算经济分类)
A3: 部门：412001_岳阳县住房和城乡建设局(本级) | M3: 金额单位：万元
A4: 功能科目 | D4: 单位代码 | E4: 单位名称（功能科目） | F4: 总 计 | G4: 机关工资福利支出 | L4: 对事业单位经常性补助
A5: 类 | B5: 款 | C5: 项 | G5: 合计 | H5: 工资奖金津补贴 | I5: 社会保障缴费 | J5: 住房公积金 | K5: 其他工资福利支出 | L5: 合计 | M5: 工资福利支出 | N5: 其他对事业单位补助
E6: 合计 | F6: 796.78 | G6: 796.78 | H6: 605.25 | I6: 131.83 | J6: 59.70
D7: 412 | E7: 岳阳县住房和城乡建设局 | F7: 796.78 | G7: 796.78 | H7: 605.25 | I7: 131.83 | J7: 59.70
D8: 412001 | E8: 岳阳县住房和城乡建设局 | F8: 796.78 | G8: 796.78 | H8: 605.25 | I8: 131.83 | J8: 59.70
A9: 208 | B9: 05 | C9: 05 | D9: 412001 | E9: 机关事业单位基本养老保险缴费支出 | F9: 79.60 | G9: 79.60 | I9: 79.60
A10: 208 | B10: 99 | C10: 99 | D10: 412001 | E10: 其他社会保障和就业支出 | F10: 4.97 | G10: 4.97 | I10: 4.97
A11: 210 | B11: 11 | C11: 01 | D11: 412001 | E11: 行政单位医疗 | F11: 47.26 | G11: 47.26 | I11: 47.26
A12: 212 | B12: 01 | C12: 01 | D12: 412001 | E12: 行政运行 | F12: 605.25 | G12: 605.25 | H12: 605.25
A13: 221 | B13: 02 | C13: 01 | D13: 412001 | E13: 住房公积金 | F13: 59.70 | G13: 59.70 | J13: 59.70

Sheet 10工资福利
U1: 部门公开表10
A2: 一般公共预算基本支出表--人员经费(工资福利支出)(按部门预算经济分类)
A3: 部门：412001_岳阳县住房和城乡建设局(本级) | U3: 金额单位：万元
A4: 功能科目 | D4: 单位代码 | E4: 单位名称（功能科目） | F4: 总 计 | G4: 工资津补贴 | L4: 社会保障缴费 | R4: 住房公积金 | S4: 其他工资福利支出
A5: 类 | B5: 款 | C5: 项 | G5: 合计 | H5: 基本工资 | I5: 津贴补贴 | J5: 奖金 | K5: 绩效工资 | L5: 合计 | M5: 机关事业单位基本养老保险缴费 | N5: 职业年金缴费 | O5: 职工基本医疗保险缴费 | P5: 公务员医疗补助缴费 | Q5: 其他社会保障缴费 | S5: 合计 | T5: 伙食补助费 | U5: 医疗费 | V5: 其他工资福利支出
E6: 合计 | F6: 796.78 | G6: 605.25 | H6: 338.01 | I6: 167.55 | K6: 99.69 | L6: 131.83 | M6: 79.60 | O6: 42.29 | P6: 4.97 | Q6: 4.97 | R6: 59.70
D7: 412 | E7: 岳阳县住房和城乡建设局 | F7: 796.78 | G7: 605.25 | H7: 338.01 | I7: 167.55 | K7: 99.69 | L7: 131.83 | M7: 79.60 | O7: 42.29 | P7: 4.97 | Q7: 4.97 | R7: 59.70
D8: 412001 | E8: 岳阳县住房和城乡建设局 | F8: 796.78 | G8: 605.25 | H8: 338.01 | I8: 167.55 | K8: 99.69 | L8: 131.83 | M8: 79.60 | O8: 42.29 | P8: 4.97 | Q8: 4.97 | R8: 59.70
A9: 208 | B9: 05 | C9: 05 | D9: 412001 | E9: 机关事业单位基本养老保险缴费支出 | F9: 79.60 | L9: 79.60 | M9: 79.60
A10: 208 | B10: 99 | C10: 99 | D10: 412001 | E10: 其他社会保障和就业支出 | F10: 4.97 | L10: 4.97 | Q10: 4.97
A11: 210 | B11: 11 | C11: 01 | D11: 412001 | E11: 行政单位医疗 | F11: 47.26 | L11: 47.26 | O11: 42.29 | P11: 4.97
A12: 212 | B12: 01 | C12: 01 | D12: 412001 | E12: 行政运行 | F12: 605.25 | G12: 605.25 | H12: 338.01 | I12: 167.55 | K12: 99.69
A13: 221 | B13: 02 | C13: 01 | D13: 412001 | E13: 住房公积金 | F13: 59.70 | R13: 59.70

Sheet 11个人家庭(政府预算)
K1: 部门公开表11
A2: 一般公共预算基本支出表--人员经费(对个人和家庭的补助)(按政府预算经济分类)
A3: 部门：412001_岳阳县住房和城乡建设局(本级) | J3: 金额单位：万元
A4: 功能科目 | D4: 单位代码 | E4: 单位名称（功能科目） | F4: 总计 | G4: 社会福利和救济 | H4: 助学金 | I4: 个人农业生产补贴 | J4: 离退休费 | K4: 其他对个人和家庭的补助
A5: 类 | B5: 款 | C5: 项
E6: 合计 | F6: 0.00

Sheet 12个人家庭
Q1: 部门公开表12
A2: 一般公共预算基本支出表--人员经费(对个人和家庭的补助)（按部门预算经济分类）
A3: 部门：412001_岳阳县住房和城乡建设局(本级) | Q3: 金额单位：万元
A4: 功能科目 | D4: 单位代码 | E4: 单位名称（功能科目） | F4: 总计 | G4: 离休费 | H4: 退休费 | I4: 退职（役）费 | J4: 抚恤金 | K4: 生活补助 | L4: 救济费 | M4: 医疗费补助 | N4: 助学金 | O4: 奖励金 | P4: 代缴社会保险费 | Q4: 个人农业生产补贴 | R4: 其他对个人和家庭的补助
A5: 类 | B5: 款 | C5: 项
E6: 合计 | F6: 0.00

Sheet 13商品服务(政府预算)
S1: 部门公开表13
A2: 一般公共预算基本支出表--公用经费(商品和服务支出)（按政府预算经济分类）
A3: 部门：412001_岳阳县住房和城乡建设局(本级) | S3: 金额单位：万元
A4: 功能科目 | D4: 单位代码 | E4: 单位名称（功能科目） | F4: 总计 | G4: 机关商品和服务支出 | R4: 对事业单位经常性补助
A5: 类 | B5: 款 | C5: 项 | G5: 合计 | H5: 办公经费 | I5: 会议费 | J5: 培训费 | K5: 专用材料购置费 | L5: 委托业务费 | M5: 公务接待费 | N5: 因公出国（境）费用 | O5: 公务用车运行维护费 | P5: 维修(护)费 | Q5: 其他商品和服务支出 | R5: 合计 | S5: 商品和服务支出 | T5: 其他对事业单位补助
E6: 合计 | F6: 84.43 | G6: 45.01 | H6: 45.01 | R6: 39.42 | S6: 39.42
D7: 412 | E7: 岳阳县住房和城乡建设局 | F7: 84.43 | G7: 45.01 | H7: 45.01 | R7: 39.42 | S7: 39.42
D8: 412001 | E8: 岳阳县住房和城乡建设局 | F8: 84.43 | G8: 45.01 | H8: 45.01 | R8: 39.42 | S8: 39.42
A9: 212 | B9: 01 | C9: 01 | D9: 412001 | E9: 行政运行 | F9: 84.43 | G9: 45.01 | H9: 45.01 | R9: 39.42 | S9: 39.42

Sheet 14商品服务
AF1: 部门公开表14
A2: 一般公共预算基本支出表--公用经费(商品和服务支出)(按部门预算经济分类)
A3: 部门：412001_岳阳县住房和城乡建设局(本级) | AF3: 金额单位：万元
A4: 功能科目 | D4: 单位代码 | E4: 单位名称（功能科目） | F4: 总 计 | G4: 办公费 | H4: 印刷费 | I4: 咨询费 | J4: 手续费 | K4: 水费 | L4: 电费 | M4: 邮电费 | N4: 取暖费 | O4: 物业管理费 | P4: 差旅费 | Q4: 因公出国（境）费用 | R4: 维修(护)费 | S4: 租赁费 | T4: 会议费 | U4: 培训费 | V4: 公务接待费 | W4: 专用材料费 | X4: 被装购置费 | Y4: 专用燃料费 | Z4: 劳务费 | AA4: 委托业务费 | AB4: 工会经费 | AC4: 福利费 | AD4: 公务用车运行维护费 | AE4: 其他交通费用 | AF4: 税金及附加费用 | AG4: 其他商品和服务支出
A5: 类 | B5: 款 | C5: 项
E6: 合计 | F6: 84.43 | G6: 5.91 | H6: 1.31 | K6: 0.95 | L6: 3.94 | M6: 6.57 | O6: 4.60 | P6: 7.88 | R6: 1.31 | U6: 2.34 | V6: 3.29 | AE6: 45.01 | AG6: 1.31
D7: 412 | E7: 岳阳县住房和城乡建设局 | F7: 84.43 | G7: 5.91 | H7: 1.31 | K7: 0.95 | L7: 3.94 | M7: 6.57 | O7: 4.60 | P7: 7.88 | R7: 1.31 | U7: 2.34 | V7: 3.29 | AE7: 45.01 | AG7: 1.31
D8: 412001 | E8: 岳阳县住房和城乡建设局 | F8: 84.43 | G8: 5.91 | H8: 1.31 | K8: 0.95 | L8: 3.94 | M8: 6.57 | O8: 4.60 | P8: 7.88 | R8: 1.31 | U8: 2.34 | V8: 3.29 | AE8: 45.01 | AG8: 1.31
A9: 212 | B9: 01 | C9: 01 | D9: 412001 | E9: 行政运行 | F9: 84.43 | G9: 5.91 | H9: 1.31 | K9: 0.95 | L9: 3.94 | M9: 6.57 | O9: 4.60 | P9: 7.88 | R9: 1.31 | U9: 2.34 | V9: 3.29 | AE9: 45.01 | AG9: 1.31

Sheet 15三公
G1: 部门公开表15
A2: 一般公共预算“三公”经费支出表
A3: 部门：412001_岳阳县住房和城乡建设局(本级) | H3: 金额单位：万元
A4: 单位编码 | B4: 单位名称 | C4: “三公”经费合计 | D4: 因公出国（境）费 | E4: 公务用车购置及运行费 | H4: 公务接待费
E5: 小计 | F5: 公务用车购置费 | G5: 公务用车运行费
B6: 合计 | C6: 3.29 | H6: 3.29
A7: 412 | B7: 岳阳县住房和城乡建设局 | C7: 3.29 | H7: 3.29
A8: 412001 | B8: 岳阳县住房和城乡建设局 | C8: 3.29 | H8: 3.29

Sheet 16政府性基金
G1: 部门公开表16
A2: 政府性基金预算支出表
A3: 部门：412001_岳阳县住房和城乡建设局(本级) | H3: 金额单位：万元
A4: 科目编码 | B4: 科目名称 | C4: 合计 | D4: 本年政府性基金预算支出 | H4: 项目支出
D5: 小计 | E5: 人员经费 | G5: 公用经费
E6: 工资福利支出 | F6: 对个人和家庭的补助
B7: 合计 | C7: =SUM(C8) -> 62.38 | H7: =SUM(H8) -> 62.38
A8: 212 | B8: 城乡社区支出 | C8: =SUM(C9+C11) -> 62.38 | H8: =SUM(H9+H11) -> 62.38
A9: 21208 | B9: 国有土地使用权出让收入安排的支出 | C9: 56.58 | H9: 56.58
A10: 2120803 | B10: 城市建设支出 | C10: 56.58 | H10: 56.58
A11: 21214 | B11: 污水处理费安排的支出 | C11: 5.80 | H11: 5.80
A12: 2121401 | B12: 污水处理设施建设和运营 | C12: 5.80 | H12: 5.80

Sheet 17政府性基金(政府预算)
S1: 部门公开表17
A2: 政府性基金预算支出分类汇总表（按政府预算经济分类）
A3: 部门：412001_岳阳县住房和城乡建设局(本级) | S3: 金额单位：万元
A4: 功能科目 | D4: 单位代码 | E4: 单位名称（功能科目） | F4: 总 计 | G4: 机关工资福利支出 | H4: 机关商品和服务支出 | I4: 机关资本性支出(一) | J4: 机关资本性支出(二) | K4: 对事业单位经常性补助 | L4: 对事业单位资本性补助 | M4: 对企业补助 | N4: 对企业资本性支出 | O4: 对个人和家庭的补助 | P4: 对社会保障基金补助 | Q4: 债务利息及费用支出 | R4: 债务还本支出 | S4: 转移性支出 | T4: 其他支出
A5: 类 | B5: 款 | C5: 项
E6: 合计 | F6: =SUM(F8:F9) -> 62.38 | H6: =SUM(H8:H9) -> 62.38
D7: 412001 | E7: 岳阳县住房和城乡建设局
A8: 212 | B8: 08 | C8: 03 | E8: 城市建设运营 | F8: 56.58 | H8: 56.58
A9: 212 | B9: 14 | C9: 01 | E9: 污水处理设施建设和运营 | F9: 5.80 | H9: 5.80

Sheet 18政府性基金（部门预算）
S1: 部门公开表18
A2: 政府性基金预算支出分类汇总表（按部门预算经济分类）
A3: 部门：412001_岳阳县住房和城乡建设局(本级) | S3: 金额单位：万元
A4: 功能科目 | D4: 单位代码 | E4: 单位名称（功能科目） | F4: 总 计 | G4: 基本支出 | K4: 项目支出
A5: 类 | B5: 款 | C5: 项 | G5: 合计 | H5: 工资福利支出 | I5: 一般商品和服务支出 | J5: 对个人和家庭的补助 | K5: 合计 | L5: 按项目管理的商品和服务支出 | M5: 按项目管理的对个人和家庭的补助 | N5: 债务利息及费用支出 | O5: 资本性支出（基本建设） | P5: 资本性支出 | Q5: 对企业补助（基本建设） | R5: 对企业补助 | S5: 对社会保障基金补助 | T5: 其他支出
E6: 合计 | F6: =SUM(F8:F9) -> 62.38 | K6: =SUM(K8:K9) -> 62.38 | L6: 62.38
D7: 412001 | E7: 岳阳县住房和城乡建设局
A8: 212 | B8: 08 | C8: 03 | E8: 城市建设运营 | F8: 56.58 | K8: 56.58 | L8: 56.58
A9: 212 | B9: 14 | C9: 01 | E9: 污水处理设施建设和运营 | F9: 5.80 | K9: 5.80 | L9: 5.80

Sheet 19国有资本经营预算
H1: 部门公开表19
A2: 国有资本经营预算支出表
A3: 部门：412001_岳阳县住房和城乡建设局(本级) | H3: 金额单位：万元
A4: 科目编码 | B4: 科目名称 | C4: 合计 | D4: 本年国有资本经营预算支出 | H4: 项目支出
D5: 小计 | E5: 人员经费 | G5: 公用经费
E6: 工资福利支出 | F6: 对个人和家庭的补助
B7: 合计 | C7: 0.00

Sheet 20财政专户管理资金
H1: 部门公开表20
A2: 财政专户管理资金预算支出表
A3: 部门：412001_岳阳县住房和城乡建设局(本级) | H3: 金额单位：万元
A4: 科目编码 | B4: 科目名称 | C4: 合计 | D4: 本年财政专户管理资金预算支出 | H4: 项目支出
D5: 小计 | E5: 人员经费 | G5: 公用经费
E6: 工资福利支出 | F6: 对个人和家庭的补助
B7: 合计 | C7: 0.00

Sheet 21专项清单
M1: 部门公开表21
A2: 专项资金预算汇总表
A3: 部门：412001_岳阳县住房和城乡建设局(本级) | M3: 金额单位：万元
A4: 单位代码 | B4: 单位名称（专项名称） | C4: 预算额度 | M4: 预算编制方式
C5: 总计 | D5: 一般公共预算 | J5: 政府性基金 | K5: 国有资本经营预算 | L5: 社会保险基金预算资金 | M5: 编入部门预算金额 | N5: 财政代编金额
D6: 一般公共预算小计 | E6: 经费拨款 | F6: 纳入一般公共预算管理的非税收入 | G6: 一般债券 | H6: 外国政府和国际组织贷款 | I6: 外国政府和国际组织赠款
B7: 合计 | C7: =SUM(C8) -> 1,222.16 | D7: =SUM(D8) -> 1,159.78 | E7: 1,151.78 | F7: 8.00 | J7: 62.38 | M7: 1,222.16
A8: 412 | B8: 岳阳县住房和城乡建设局 | C8: =SUM(C9:C15) -> 1,222.16 | D8: =SUM(D9:D15) -> 1,159.78 | E8: 1,151.78 | F8: 8.00 | J8: 62.38 | M8: 1,222.16
A9: 412001 | B9: 工程建设项目审批 | C9: 18.00 | D9: 18.00 | E9: 18.00 | M9: 18.00
A10: 412001 | B10: 会议费 | C10: 2.70 | D10: 2.70 | E10: 2.70 | M10: 2.70
A11: 412001 | B11: 危房改造 | C11: 10.00 | D11: 10.00 | E11: 10.00 | M11: 10.00
A12: 412001 | B12: 文明创建 | C12: 23.00 | D12: 23.00 | E12: 23.00 | M12: 23.00
A13: 412001 | B13: 建设管理经费 | C13: 163.48 | D13: 163.48 | E13: 163.48 | M13: 163.48
A14: 412001 | B14: 建设市场执法监督管理 | C14: 378.00 | D14: 378.00 | E14: 370.00 | F14: 8.00 | M14: 378.00
A15: 412001 | B15: 市政基础设施运行维护 | C15: 626.98 | D15: 564.60 | E15: 564.60 | J15: 62.38 | M15: 626.98
C17: =SUM(D8+J8) -> 1,222.16

Sheet 22项目支出绩效目标表
M1: 部门公开表22
C2: 项目支出绩效目标表
A3: 部门：412001_岳阳县住房和城乡建设局(本级) | L3: 金额单位：万元
A4: 单位代码 | B4: 单位（专项）名称 | C4: 资金总额 | D4: 实施期绩效目标 | E4: 绩效指标
E5: 一级指标 | F5: 二级指标 | G5: 三级指标 | H5: 指标值 | I5: 指标值内容 | J5: 评（扣分标准） | K5: 度量单位 | L5: 指标值类型 | M5: 备注
A6: 412001 | B6: 岳阳县住房和城乡建设局 | C6: =SUM(C7+C17+C27+C37+C47+C57+C67) -> 1,222.16
A7: 412001 | B7: 工程建设项目审批 | C7: 18.00 | D7: 2023年度政务中心项目审批 | E7: 成本指标 | F7: 经济成本指标 | G7: 工程建设项目审批 | H7: 20万元 | I7: 严格控制非生产性支出 | J7: 未达到评判标准扣分 | K7: 分 | L7: 定量
F8: 社会成本指标 | G8: 工程建设项目审批 | H8: 合理 | I8: 严格控制非生产性支出 | J8: 未达到评判标准扣分 | K8: 分 | L8: 定性
F9: 生态环境成本指标 | G9: 工程建设项目审批 | H9: 合理 | I9: 减少污染 | J9: 未达到评判标准扣分 | K9: 分 | L9: 定性
E10: 产出指标 | F10: 数量指标 | G10: 工程建设项目审批 | H10: 4阶段 | I10: 审查施工许可、审查工程合格 | J10: 未达到评判标准扣分 | K10: 分 | L10: 定量
F11: 质量指标 | G11: 工程建设项目审批 | H11: 合格 | I11: 合格 | J11: 未达到评判标准扣分 | K11: 分 | L11: 定性
F12: 时效指标 | G12: 工程建设项目审批 | H12: 年 | I12: 2023年1-12月 | J12: 未达到评判标准扣分 | K12: 分 | L12: 定量
E13: 效益指标 | F13: 生态效益指标 | G13: 工程建设项目审批 | H13: 良好 | I13: 减少污染 | J13: 未达到评判标准扣分 | K13: 分 | L13: 定性
F14: 经济效益指标 | G14: 工程建设项目审批 | H14: 良好 | I14: 带动周边产业 | J14: 未达到评判标准扣分 | K14: 分 | L14: 定性
F15: 社会效益指标 | G15: 工程建设项目审批 | H15: 良好 | I15: 公众满意 | J15: 未达到评判标准扣分 | K15: 分 | L15: 定性
E16: 满意度指标 | F16: 服务对象满意度指标 | G16: 工程建设项目审批 | H16: 98% | I16: 公众满意度 | J16: 未达到评判标准扣分 | K16: 分 | L16: ≥
A17: 412001 | B17: 会议费 | C17: 2.70 | D17: 2023年城乡建设会议费 | E17: 成本指标 | F17: 生态环境成本指标 | G17: 其他城乡建设工作经费 | H17: 合理 | I17: 严格控制非生产性开支 | J17: 未达到评判标准扣分 | K17: 分 | L17: 定性
F18: 经济成本指标 | G18: 其他城乡建设工作经费 | H18: 2.7万元 | I18: 严格控制非生产性开支 | J18: 未达到评判标准扣分 | K18: 分 | L18: 定量
F19: 社会成本指标 | G19: 其他城乡建设工作经费 | H19: 合理 | I19: 严格控制非生产性开支 | J19: 未达到评判标准扣分 | K19: 分 | L19: 定性
E20: 产出指标 | F20: 数量指标 | G20: 其他城乡建设工作经费 | H20: 合理 | I20: 严格控制非生产性开支 | J20: 未达到评判标准扣分 | K20: 分 | L20: 定性
F21: 质量指标 | G21: 其他城乡建设工作经费 | H21: 合理 | I21: 严格控制非生产性开支 | J21: 未达到评判标准扣分 | K21: 分 | L21: 定性
F22: 时效指标 | G22: 其他城乡建设工作经费 | H22: 年 | I22: 2023年1-12月 | J22: 未达到评判标准扣分 | K22: 分 | L22: 定量
E23: 效益指标 | F23: 社会效益指标 | G23: 其他城乡建设工作经费 | H23: 合理 | I23: 严格控制非生产性开支 | J23: 未达到评判标准扣分 | K23: 分 | L23: 定性
F24: 生态效益指标 | G24: 其他城乡建设工作经费 | H24: 合理 | I24: 严格控制非生产性开支 | J24: 未达到评判标准扣分 | K24: 分 | L24: 定性
F25: 经济效益指标 | G25: 其他城乡建设工作经费 | H25: 合理 | I25: 严格控制非生产性开支 | J25: 未达到评判标准扣分 | K25: 分 | L25: 定性
E26: 满意度指标 | F26: 服务对象满意度指标 | G26: 其他城乡建设工作经费 | H26: 满意度 | I26: 98% | J26: 未达到评判标准扣分 | K26: 分 | L26: ≥
A27: 412001 | B27: 建设管理经费 | C27: 163.48 | D27: 建设管理经费 | E27: 成本指标 | F27: 经济成本指标 | G27: 2023年机关其他运行经费 | H27: 163.4848万元 | I27: 严格控制非生产性支出 | J27: 未达到评判标准扣分 | K27: 分 | L27: 定量
F28: 社会成本指标 | G28: 2023年机关其他运行经费 | H28: 合理 | I28: 严格控制非生产性支出 | J28: 未达到评判标准扣分 | K28: 分 | L28: 定性
F29: 生态环境成本指标 | G29: 2023年机关其他运行经费 | H29: 合理 | I29: 严格控制非生产性支出 | J29: 未达到评判标准扣分 | K29: 分 | L29: 定性
E30: 产出指标 | F30: 数量指标 | G30: 2023年机关其他运行经费 | H30: 合理 | I30: 严格控制非生产性支出 | J30: 未达到评判标准扣分 | K30: 分 | L30: 定性
F31: 时效指标 | G31: 2023年机关其他运行经费 | H31: 年 | I31: 2023年1-12月 | J31: 未达到评判标准扣分 | K31: 分 | L31: 定量
F32: 质量指标 | G32: 2023年机关其他运行经费 | H32: 合理 | I32: 严格控制非生产性支出 | J32: 未达到评判标准扣分 | K32: 分 | L32: 定性
E33: 满意度指标 | F33: 服务对象满意度指标 | G33: 2023年机关其他运行经费 | H33: 满意度 | I33: 98% | J33: 未达到评判标准扣分 | K33: 分 | L33: ≥
E34: 效益指标 | F34: 经济效益指标 | G34: 2023年机关其他运行经费 | H34: 合理 | I34: 严格控制非生产性支出 | J34: 未达到评判标准扣分 | K34: 分 | L34: 定性
F35: 社会效益指标 | G35: 2023年机关其他运行经费 | H35: 合理 | I35: 严格控制非生产性支出 | J35: 未达到评判标准扣分 | K35: 分 | L35: 定性
F36: 生态效益指标 | G36: 2023年机关其他运行经费 | H36: 合理 | I36: 严格控制非生产性支出 | J36: 未达到评判标准扣分 | K36: 分 | L36: 定性
A37: 412001 | B37: 建设市场执法监督管理 | C37: 378.00 | D37: 完成2023年度建设市场执法工作经费。 | E37: 满意度指标 | F37: 服务对象满意度指标 | G37: 建设市场执法监督管理 | H37: 98% | I37: 公众满意度 | J37: 未达到评判标准扣分 | K37: 分 | L37: ≥
E38: 效益指标 | F38: 生态效益指标 | G38: 建设市场执法监督管理 | H38: 98% | I38: 减少扬尘及污染 | J38: 未达到评判标准扣分 | K38: 分 | L38: ≥
F39: 社会效益指标 | G39: 建设市场执法监督管理 | H39: 98% | I39: 消除安全隐患 | J39: 未达到评判标准扣分 | K39: 分 | L39: ≥
F40: 经济效益指标 | G40: 建设市场执法监督管理 | H40: 95% | I40: 带到周边产业 | J40: 未达到评判标准扣分 | K40: 分 | L40: ≥
E41: 产出指标 | F41: 时效指标 | G41: 建设市场执法监督管理 | H41: 年 | I41: 2023年1-12月 | J41: 未达到评判标准扣分 | K41: 分 | L41: 定量
F42: 质量指标 | G42: 建设市场执法监督管理 | H42: 98% | I42: 合格 | J42: 未达到评判标准扣分 | K42: 分 | L42: ≥
F43: 数量指标 | G43: 建设市场执法监督管理 | H43: 95% | I43: 县城所有在建工地 | J43: 未达到评判标准扣分 | K43: 分 | L43: ≥
E44: 成本指标 | F44: 生态环境成本指标 | G44: 建设市场执法监督管理 | H44: 合理 | I44: 减少污染 | J44: 未达到评判标准扣分 | K44: 分 | L44: 定性
F45: 经济成本指标 | G45: 建设市场执法监督 | H45: 390万元 | I45: 严格控制非生产性开支 | J45: 未达到评判标准扣分 | K45: 分 | L45: 定量
F46: 社会成本指标 | G46: 建设市场执法监督管理 | H46: 合理 | I46: 按预算安排严格执行 | J46: 未达到评判标准扣分 | K46: 分 | L46: 定性
A47: 412001 | B47: 危房改造 | C47: 10.00 | D47: 用于完成2023年度危房改造工作经费 | E47: 满意度指标 | F47: 服务对象满意度指标 | G47: 2023年度危房改造 | H47: 98% | I47: 危房改造对象满意度 | J47: 未达到评判标准扣分 | K47: 分 | L47: ≥
E48: 效益指标 | F48: 生态效益指标 | G48: 2023年度危房改造 | H48: 合格 | I48: 突出乡村特色保护生态环境 | J48: 未达到评判标准扣分 | K48: 分 | L48: 定性
F49: 社会效益指标 | G49: 2023年度危房改造 | H49: 合格 | I49: 解决贫困户住房安全问题 | J49: 未达到评判标准扣分 | K49: 分 | L49: 定性
F50: 经济效益指标 | G50: 2023年度危房改造 | H50: 合格 | I50: 促进地方经济发展 | J50: 未达到评判标准扣分 | K50: 分 | L50: 定性
E51: 产出指标 | F51: 时效指标 | G51: 2023年度危房改造 | H51: 1年 | I51: 2023年1-12月 | J51: 未达到评判标准扣分 | K51: 分 | L51: 定量
F52: 质量指标 | G52: 2023年度危房改造 | H52: 合格 | I52: 合格 | J52: 未达到评判标准扣分 | K52: 分 | L52: 定性
F53: 数量指标 | G53: 2023年度危房改造 | H53: 20套 | I53: 实地考察 严格核实 | J53: 未达到评判标准扣分 | K53: 分 | L53: 定量
E54: 成本指标 | F54: 生态环境成本指标 | G54: 2023年度危房改造 | H54: 合理 | I54: 保护环境 突出特色 | J54: 未达到评判标准扣分 | K54: 分 | L54: 定性
F55: 社会成本指标 | G55: 2023年度危房改造 | H55: 合理 | I55: 严格控制非生产性支出 | J55: 未达到评判标准扣分 | K55: 分 | L55: 定性
F56: 经济成本指标 | G56: 2023年度危房改 | H56: 10万元 | I56: 严格控制非生产性支出 | J56: 未达到评判标准扣分 | K56: 分 | L56: 定量
A57: 412001 | B57: 文明创建 | C57: 23.00 | D57: 2023年度文明创建工作经费 | E57: 满意度指标 | F57: 服务对象满意度指标 | G57: 文明创建 | H57: 98% | I57: 满意度 | J57: 未达到评判标准扣分 | K57: 分 | L57: ≥
E58: 成本指标 | F58: 经济成本指标 | G58: 文明创建 | H58: 25万元 | I58: 县文明创建工作经费 | J58: 未达到评判标准扣分 | K58: 分 | L58: 定量
F59: 社会成本指标 | G59: 文明创建 | H59: 合理 | I59: 县文明创建工作经费 | J59: 未达到评判标准扣分 | K59: 分 | L59: 定性
F60: 生态环境成本指标 | G60: 文明创建 | H60: 合理 | I60: 县文明创建工作经费 | J60: 未达到评判标准扣分 | K60: 分 | L60: 定性
E61: 效益指标 | F61: 生态效益指标 | G61: 文明创建 | H61: 良好 | I61: 改善人居环境 | J61: 未达到评判标准扣分 | K61: 分 | L61: 定性
F62: 经济效益指标 | G62: 文明创建 | H62: 良好 | I62: 带到周边产业 | J62: 未达到评判标准扣分 | K62: 分 | L62: 定性
F63: 社会效益指标 | G63: 文明创建 | H63: 良好 | I63: 改善人居环境 | J63: 未达到评判标准扣分 | K63: 分 | L63: 定性
E64: 产出指标 | F64: 质量指标 | G64: 文明创建 | H64: 合理 | I64: 县文明创建工作经费 | J64: 未达到评判标准扣分 | K64: 分 | L64: 定性
F65: 时效指标 | G65: 文明创建 | H65: 年 | I65: 2023年1-12月 | J65: 未达到评判标准扣分 | K65: 分 | L65: 定量
F66: 数量指标 | G66: 文明创建 | H66: 合理 | I66: 县文明创建工作经费 | J66: 未达到评判标准扣分 | K66: 分 | L66: 定性
A67: 412001 | B67: 市政基础设施运行维护 | C67: 626.98 | D67: 2023年度公共基础市政设施运行维护 | E67: 满意度指标 | F67: 服务对象满意度指标 | G67: 服务市民满意度 | H67: 98% | I67: 满意度 | J67: 未达到评判标准扣分 | K67: 分 | L67: ≥
E68: 成本指标 | F68: 经济成本指标 | G68: 确保市政设施运行维护 | H68: 626.98万元 | I68: 确保全县市政设施运行维护 | J68: 未达到评判标准扣分 | K68: 分 | L68: 定量
F69: 社会成本指标 | G69: 市政设施运行维护合理支出 | H69: 合理 | I69: 县城公共基础设施运行维护费 | J69: 未达到评判标准扣分 | K69: 分 | L69: 定性
F70: 生态环境成本指标 | G70: 建设良好的市民生活居住环境 | H70: 合理 | I70: 建设良好的市民生活居住环境 | J70: 未达到评判标准扣分 | K70: 分 | L70: 定性
E71: 效益指标 | F71: 生态效益指标 | G71: 建设良好的市民生活居住环境 | H71: 良好 | I71: 改善人居环境 | J71: 未达到评判标准扣分 | K71: 分 | L71: 定性
F72: 经济效益指标 | G72: 保证城市公益设施的长期合理发展 | H72: 良好 | I72: 带到周边产业 | J72: 未达到评判标准扣分 | K72: 分 | L72: 定性
F73: 社会效益指标 | G73: 促进城镇公益设施建设与管理 | H73: 良好 | I73: 改善人居环境 | J73: 未达到评判标准扣分 | K73: 分 | L73: 定性
E74: 产出指标 | F74: 质量指标 | G74: 保证财政资金的规范使用 | H74: 合理 | I74: 保证财政资金的规范使用 | J74: 未达到评判标准扣分 | K74: 分 | L74: 定性
F75: 时效指标 | G75: 严格按资金拨付进度完成 | H75: 年 | I75: 2023年1-12月 | J75: 未达到评判标准扣分 | K75: 分 | L75: 定量
F76: 数量指标 | G76: 完成各项市政工作的监管职能 | H76: 合理 | I76: 完成各项公共基础市政工作的监管职能 | J76: 未达到评判标准扣分 | K76: 分 | L76: 定性

Sheet 23整体支出绩效目标表
S1: 部门公开表23
A2: 整体支出绩效目标表
A3: 部门：412001_岳阳县住房和城乡建设局(本级)
Q4: 金额单位：万元
A5: 单位编码 | B5: 单位名称 | C5: 年度预算申请 | J5: 整体绩效目标 | K5: 部门整体支出年度绩效目标
C6: 资金总额 | D6: 按收入性质分 | H6: 按支出性质分
D7: 一般公共预算 | E7: 政府性基金拨款 | F7: 财政专户管理资金 | G7: 其他资金 | H7: 基本支出 | I7: 项目支出 | K7: 一级指标 | L7: 二级指标 | M7: 三级指标 | N7: 指标值类型 | O7: 指标值 | P7: 计量单位 | Q7: 指标解释 | R7: 评（扣）分标准 | S7: 备注
A8: 412001 | B8: 岳阳县住房和城乡建设局 | C8: =SUM(D8+E8) -> 2,103.37 | D8: 2,040.99 | E8: 62.38 | H8: 881.21 | I8: 1,222.16 | J8: 1.拉大城市骨架，全力提升市政基础设施水平。 2.夯实民生基础、增进民生福祉。一是全面启动住保项目，二是全力推进旧改项目,三是全面发展乡村振兴。 3.加大房地产开发市场监管力度。实施稳房价、稳预期，促进市场发展。 4.加强建筑质量安全监管责任。健全质量监管机制，提升工程质量整体水平，确保安全生产形势稳定可控。 5.是大力推广绿色建筑。全力推进绿色建筑和装配式建筑，督导政府投资项目和保障性住房项目推广使用绿色装配式材料。 | K8: 产出指标 | L8: 数量指标 | M8: 严格按预算执行 | N8: 定量 | O8: 100% | P8: 项 | Q8: 控制财政供养人员、严格控制三公经费，严控非生产性开支 | R8: 未达到评判标准扣分
L9: 质量指标 | M9: 严格工程按施 | N9: 定量 | O9: 95% | P9: 项 | Q9: 规范财政经费使用，把控非生产性开支 | R9: 未达到评判标准扣分
L10: 时效指标 | M10: 2023年 | N10: 定量 | O10: 2023.1-12月 | P10: 年 | Q10: 按进度支付各项目资金 | R10: 未达到评判标准扣分
L11: 成本指标 | M11: 财政整体支出 | N11: 定量 | O11: 2103.37万元 | P11: 万元 | Q11: 财政整体支出2103.37万元，严格按预算执行 | R11: 未达到评判标准扣分
K12: 效益指标 | L12: 经济效益指标 | N12: 定量 | O12: 合理 | P12: 项 | Q12: 提高人居生活质量，改善人居环境 | R12: 未达到评判标准扣分
L13: 社会效益指标 | N13: 定量 | O13: 合理 | P13: 项 | Q13: 节约社会资源，减少管理成本 | R13: 未达到评判标准扣分
L14: 生态效益指标 | N14: 定量 | O14: 合理 | P14: 项 | Q14: 保护环境，减少污染 | R14: 未达到评判标准扣分
L15: 可持续影响指标 | N15: 定量 | O15: 合理 | P15: 项 | Q15: 社会影响深远 | R15: 未达到评判标准扣分
K16: 满意度指标 | L16: 服务对象满意度指标 | N16: 定量 | O16: 合理 | P16: 项 | Q16: 社会公众满意度 | R16: 未达到评判标准扣分
